bitfinex/quotes_SOLUSD_20260108
["timestamp","ask_amount","ask_price","bid_price","bid_amount"]
[1767854119161,10.34883382,135.23,135.19,0.72451694]
[1767854120034,0.71133518,135.2,135.17,0.72451694]
[1767854120435,10.35009464,135.21,135.17,0.72451694]
[1767854121149,0.71133518,135.21,135.17,8.12254297]
[1767854121453,0.71133518,135.21,135.18,0.72451694]
[1767854122059,2.95372374,135.21,135.18,0.72451694]
[1767854124034,0.71133518,135.2,135.17,7.39802603]
[1767854124558,0.71133518,135.2,135.17,9.64041459]
[1767854124731,0.71133518,135.2,135.17,10.36493153]
[1767854124937,0.71133518,135.22,135.18,2.24238856]
[1767854127649,0.71133518,135.22,135.17,10.36485587]
[1767854127838,0.71133518,135.22,135.18,0.72451694]
[1767854128364,10.34909668,135.22,135.18,0.72451694]
[1767854128742,0.71133518,135.22,135.18,0.72451694]
[1767854129149,2.95372374,135.22,135.18,0.72451694]
[1767854129865,10.3491582,135.22,135.18,0.72451694]
[1767854130449,2.24238856,135.19,135.16,0.72451694]
[1767854130661,0.71133518,135.2,135.16,0.72451694]
[1767854130860,2.24238856,135.18,135.16,0.72451694]
[1767854131171,0.71133518,135.2,135.16,0.72451694]
[1767854131353,2.95372374,135.2,135.16,0.72451694]
[1767854131664,10.35142445,135.18,135.14,0.72451694]
[1767854131863,2.95372374,135.18,135.14,0.72451694]
[1767854132572,2.95372374,135.18,135.14,0.66583771]
[1767854132948,2.95372374,135.18,135.14,8.06542853]
[1767854133182,0.71028897,135.16,135.13,8.06581227]
[1767854133344,0.71028897,135.16,135.11,18.50290283]
[1767854133345,2.24238856,135.15,135.09,0.2]
[1767854133551,2.24238856,135.16,135.11,8.06686094]
[1767854133871,2.24238856,135.17,135.12,8.0666666]
[1767854134072,2.24238856,135.17,135.12,10.30905516]
[1767854134271,2.24238856,135.18,135.13,2.90822627]
[1767854134458,16.0267117,135.19,135.14,2.90822627]
[1767854134661,13.5,135.19,135.14,2.90822627]
[1767854135372,14.21028897,135.19,135.14,2.90822627]
[1767854135880,0.71028897,135.19,135.16,0.66583771]
[1767854136062,0.71028897,135.19,135.16,2.90822627]
[1767854137255,0.71028897,135.2,135.17,0.66583771]
[1767854137452,2.95267753,135.2,135.16,8.0640172]
[1767854137691,0.71028897,135.2,135.16,10.30640576]
[1767854140158,0.71028897,135.2,135.16,8.0640172]
[1767854140482,0.71028897,135.2,135.17,2.24238856]
[1767854140882,0.71028897,135.22,135.18,2.90822627]
[1767854141058,0.71028897,135.22,135.19,2.24238856]
[1767854141261,0.71028897,135.23,135.19,0.66583771]
[1767854141582,0.71028897,135.23,135.2,2.24238856]
[1767854142191,0.71028897,135.24,135.21,2.24238856]
[1767854142556,0.71028897,135.25,135.22,2.24238856]
[1767854143254,0.71028897,135.25,135.21,2.90822627]
[1767854143962,0.71028897,135.25,135.21,2.24238856]
[1767854145579,0.71028897,135.25,135.22,2.24238856]
[1767854145784,0.71028897,135.27,135.24,2.24238856]
[1767854145960,0.71028897,135.27,135.25,2.24238856]
[1767854146574,0.71028897,135.27,135.24,2.24238856]
[1767854146773,0.71028897,135.27,135.25,2.24238856]
[1767854148863,0.71028897,135.27,135.24,2.24238856]
[1767854149769,0.71028897,135.27,135.24,2.90822627]
[1767854150271,16.47209728,135.28,135.26,2.90822627]
[1767854152396,16.47209728,135.28,135.27,2.24238856]
[1767854152609,16.47209728,135.28,135.26,0.66583771]
[1767854152610,16.47209728,135.28,135.26,2.90822627]
[1767854153100,16.47209728,135.28,135.27,2.24238856]
[1767854153892,16.47209728,135.28,135.26,8.05856649]
[1767854154195,16.47209728,135.28,135.26,10.30095505]
[1767854154388,16.47209728,135.28,135.26,0.66583771]
[1767854154592,16.47209728,135.28,135.26,2.90822627]
[1767854154983,16.47209728,135.28,135.26,10.30137793]
[1767854155299,0.1,135.29,135.27,2.90822627]
[1767854156377,0.1,135.29,135.27,2.24238856]
[1767854159094,0.81028897,135.29,135.25,2.24238856]
[1767854159590,0.71028897,135.28,135.24,2.52935472]
[1767854160873,0.71028897,135.28,135.25,2.24238856]
[1767854161085,0.71028897,135.28,135.21,0.28696616]
[1767854161086,0.71028897,135.25,135.21,0.28696616]
[1767854161294,0.71028897,135.22,135.21,0.28696616]
[1767854161595,2.95267753,135.2,135.15,9.6413835]
[1767854161895,2.95267753,135.2,135.14,18.49879592]
[1767854161896,2.94569912,135.19,135.14,9.64192074]
[1767854162076,0.68558986,135.17,135.12,2.24238856]
[1767854162276,0.68558986,135.17,135.13,2.24238856]
[1767854162881,0.68558986,135.17,135.12,13.5]
[1767854163078,8.08378418,135.17,135.12,13.5]
[1767854163282,8.08378418,135.17,135.11,7.40137665]
[1767854163283,0.68558986,135.15,135.11,2.24238856]
[1767854163478,0.68558986,135.15,135.1,7.60176731]
[1767854163672,0.68558986,135.15,135.11,2.24238856]
[1767854164210,0.68558986,135.15,135.1,7.60176731]
[1767854164576,0.68558986,135.15,135.1,21.10176731]
[1767854164901,0.68558986,135.16,135.12,2.24238856]
[1767854165485,0.68558986,135.16,135.11,7.40105547]
[1767854165690,0.68558986,135.15,135.1,21.1018592]
[1767854165892,0.68558986,135.15,135.11,9.6437062]
[1767854166087,0.68558986,135.15,135.1,7.60175073]
[1767854166296,0.68558986,135.15,135.11,2.24238856]
[1767854166606,0.68558986,135.14,135.1,3.70880341]
[1767854167184,0.68558986,135.14,135.11,3.50880341]
[1767854167717,0.68558986,135.14,135.12,3.50880341]
[1767854168018,0.68558986,135.14,135.1,3.70880341]
[1767854168595,0.68558986,135.14,135.1,0.2]
[1767854168831,0.68558986,135.14,135.1,3.70880341]
[1767854169419,0.68558986,135.14,135.1,0.2]
[1767854169718,8.08535598,135.14,135.1,0.2]
[1767854169899,0.68558986,135.14,135.1,3.70880341]
[1767854170926,0.68558986,135.14,135.11,3.50880341]
[1767854171598,8.08443465,135.16,135.12,3.50880341]
[1767854172123,0.68558986,135.15,135.12,3.50880341]
[1767854172528,0.68558986,135.15,135.11,3.50880341]
[1767854173009,0.68558986,135.15,135.08,18.70673968]
[1767854173010,0.68558986,135.14,135.08,0.2]
[1767854173194,0.68558986,135.14,135.1,3.50880341]
[1767854173531,0.68558986,135.12,135.08,3.70880341]
[1767854174028,0.68558986,135.12,135.08,0.2]
[1767854174193,0.68558986,135.12,135.08,3.70880341]
[1767854174702,0.68558986,135.12,135.08,0.2]
[1767854174904,0.68558986,135.12,135.08,3.70880341]
[1767854175618,0.68558986,135.11,135.08,0.2]
[1767854177034,3.50880341,135.09,135.06,0.2]
[1767854177330,0.68558986,135.08,135.06,0.2]
[1767854177695,17.00880341,135.1,135.06,0.2]
[1767854177696,0.68558986,135.11,135.07,3.70880341]
[1767854177930,0.68558986,135.11,135.08,3.50880341]
[1767854178224,0.68558986,135.11,135.07,0.2]
[1767854178411,0.68558986,135.11,135.07,3.50880341]
[1767854178720,0.68558986,135.11,135.06,7.8037998]
[1767854178932,0.68558986,135.09,135.06,7.60399593]
[1767854179099,13.5,135.12,135.09,0.2]
[1767854179419,0.68558986,135.13,135.11,3.50880341]
[1767854179610,14.20558986,135.15,135.12,3.50880341]
[1767854179796,21.60480267,135.15,135.12,3.50880341]
[1767854180122,0.68558986,135.14,135.11,3.50880341]
[1767854180416,0.68558986,135.14,135.12,3.50880341]
[1767854180609,0.68558986,135.14,135.1,0.2]
[1767854180917,0.68558986,135.14,135.11,3.50880341]
[1767854181726,0.68558986,135.14,135.12,3.50880341]
[1767854181894,0.68558986,135.14,135.11,3.50880341]
[1767854182090,0.68558986,135.14,135.1,3.50880341]
[1767854182330,0.68558986,135.14,135.09,7.60223631]
[1767854182623,0.68558986,135.11,135.07,3.70880341]
[1767854182822,3.50880341,135.12,135.06,0.2]
[1767854182823,13.52,135.12,135.08,3.70880341]
[1767854183000,13.52,135.12,135.1,3.50880341]
[1767854184013,13.52,135.12,135.11,3.50880341]
[1767854184218,0.68558986,135.14,135.11,3.50880341]
[1767854184422,0.68558986,135.14,135.1,0.2]
[1767854184919,0.68558986,135.14,135.11,3.50880341]
[1767854186127,0.68558986,135.14,135.1,10.9104634]
[1767854186302,0.68558986,135.13,135.09,11.111043]
[1767854186626,0.68558986,135.13,135.1,3.50880341]
[1767854187017,0.68558986,135.13,135.09,7.60223959]
[1767854187221,0.68558986,135.13,135.09,11.111043]
[1767854187531,0.68558986,135.13,135.09,0.2]
[1767854187828,0.68558986,135.13,135.08,3.70880341]
[1767854188216,8.08615365,135.13,135.09,3.50880341]
[1767854189518,0.68558986,135.12,135.09,3.50880341]
[1767854189715,0.68558986,135.12,135.07,3.70880341]
[1767854190108,0.68558986,135.12,135.08,3.50880341]
[1767854190508,0.68558986,135.12,135.08,3.70880341]
[1767854190713,7.40056379,135.13,135.1,3.70880341]
[1767854191017,0.68558986,135.15,135.12,3.50880341]
[1767854191538,8.0848945,135.15,135.11,3.50880341]
[1767854191914,8.0848945,135.15,135.1,3.50880341]
[1767854191915,0.68558986,135.14,135.1,3.50880341]
[1767854193214,0.68558986,135.14,135.1,10.91062843]
[1767854193711,0.68558986,135.14,135.11,3.50880341]
[1767854194027,8.08537168,135.14,135.11,3.50880341]
[1767854194926,8.08537168,135.14,135.1,3.50880341]
[1767854195718,8.08537168,135.14,135.1,10.91072719]
[1767854195938,0.68558986,135.14,135.1,11.11072719]
[1767854196148,0.68558986,135.14,135.11,3.50880341]
[1767854196443,0.67457043,135.15,135.11,3.70880341]
[1767854196643,8.07211539,135.18,135.14,3.50880341]
[1767854196839,0.67457043,135.17,135.14,3.50880341]
[1767854197030,0.67457043,135.17,135.14,2.78380341]
[1767854197228,0.67457043,135.17,135.14,2.10837384]
[1767854197746,0.67457043,135.17,135.15,3.50880341]
[1767854198138,0.67457043,135.17,135.14,7.39954347]
[1767854198326,0.099,135.15,135.09,10.9110372]
[1767854198529,0.56981472,135.14,135.09,10.9110372]
[1767854199137,0.56981472,135.14,135.09,7.40223379]
[1767854199322,0.56981472,135.14,135.1,3.50880341]
[1767854201643,0.10370815,135.13,135.1,3.50880341]
[1767854201847,7.39977168,135.14,135.11,0.70958669]
[1767854202426,7.39941078,135.15,135.11,4.2183901]
[1767854202834,11.47802891,135.15,135.11,0.70958669]
[1767854203632,7.9692255,135.15,135.11,0.70958669]
[1767854203850,29.4046818,135.16,135.11,0.70958669]
[1767854204251,4.86377722,135.15,135.11,0.70958669]
[1767854204952,4.86377722,135.15,135.11,4.2183901]
[1767854205136,4.86377722,135.15,135.12,0.70958669]
[1767854205333,4.86377722,135.15,135.11,3.50880341]
[1767854205558,0.56981472,135.15,135.11,7.40135785]
[1767854205738,0.10370815,135.14,135.1,10.91053877]
[1767854208154,4.87090824,135.15,135.11,0.70958669]
[1767854208558,0.67457043,135.18,135.14,0.70958669]
[1767854209057,0.67457043,135.18,135.13,3.50880341]
[1767854209734,7.39783433,135.18,135.13,3.65923298]
[1767854209937,4.17473669,135.21,135.16,0.15042957]
[1767854210139,0.66593328,135.21,135.17,3.50880341]
[1767854210330,0.66593328,135.21,135.16,0.15042957]
[1767854210549,0.66593328,135.2,135.16,0.15042957]
[1767854210954,0.66593328,135.2,135.16,3.65923298]
[1767854211558,0.66593328,135.2,135.16,11.05767763]
[1767854212535,0.66593328,135.2,135.16,7.54887422]
[1767854212760,0.66593328,135.2,135.17,3.50880341]
[1767854212952,11.57031082,135.22,135.17,11.05725102]
[1767854213368,8.06150741,135.22,135.17,11.05725102]
[1767854213785,8.06150741,135.22,135.17,3.65923298]
[1767854214075,8.06150741,135.22,135.17,3.599233]
[1767854215386,8.06150741,135.22,135.18,3.50880341]
[1767854216559,8.06150741,135.22,135.17,0.15042957]
[1767854216777,30.05870011,135.22,135.17,3.65923298]
[1767854216960,0.66593328,135.2,135.16,17.00880341]
[1767854217669,0.66593328,135.2,135.16,17.15923298]
[1767854217985,25.88396342,135.22,135.19,3.50880341]
[1767854217986,0.66593328,135.22,135.19,3.50880341]
[1767854218577,0.66593328,135.24,135.2,3.50880341]
[1767854219173,8.06033948,135.24,135.2,3.50880341]
[1767854220170,0.66593328,135.24,135.19,3.50880341]
[1767854220377,0.66593328,135.24,135.18,11.05646899]
[1767854220378,0.66593328,135.23,135.18,11.05646899]
[1767854220990,7.39461049,135.24,135.2,3.65923298]
[1767854221196,8.06054377,135.24,135.2,3.65923298]
[1767854221488,8.06054377,135.24,135.2,3.50880341]
[1767854221875,8.06054377,135.24,135.21,3.50880341]
[1767854222067,0.66593328,135.25,135.21,3.50880341]
[1767854222387,0.66593328,135.25,135.21,3.65923298]
[1767854222596,0.66593328,135.25,135.21,0.15042957]
[1767854222789,7.3927756,135.27,135.23,3.50880341]
[1767854222966,8.05972005,135.27,135.23,3.50880341]
[1767854223163,0.66694445,135.28,135.25,3.50880341]
[1767854223578,0.1,135.29,135.25,3.50880341]
[1767854223579,0.76694445,135.29,135.25,3.50880341]
[1767854223779,0.1,135.29,135.26,3.50880341]
[1767854223979,0.1,135.29,135.27,3.50880341]
[1767854224164,0.1,135.29,135.28,3.50880341]
[1767854224585,0.1,135.32,135.29,3.50880341]
[1767854225685,0.76694445,135.32,135.27,13.5]
[1767854225884,0.76694445,135.32,135.28,3.50880341]
[1767854226769,8.15697394,135.32,135.27,24.40135275]
[1767854226971,8.15697394,135.32,135.28,3.50880341]
[1767854227183,0.66694445,135.31,135.27,13.5]
[1767854227377,0.66694445,135.31,135.27,24.40140592]
[1767854227572,0.76694445,135.32,135.28,3.55923298]
[1767854227789,0.76694445,135.32,135.29,3.50880341]
[1767854227997,0.76694445,135.32,135.29,3.44880341]
[1767854228494,0.76694445,135.32,135.29,2.23951823]
[1767854229273,0.76694445,135.32,135.28,9.63157573]
[1767854229996,0.1,135.32,135.29,9.63093141]
[1767854230506,0.1,135.32,135.29,9.63095798]
[1767854230792,0.1,135.32,135.3,9.6302673]
[1767854230976,0.1,135.32,135.31,2.23951823]
[1767854231171,0.1,135.32,135.29,13.5]
[1767854231378,0.1,135.32,135.29,15.73951823]
[1767854231578,3.03007499,135.32,135.24,18.76992359]
[1767854231811,3.03007499,135.32,135.27,2.23951823]
[1767854231991,0.79055676,135.32,135.27,2.23951823]
[1767854232378,0.79055676,135.32,135.27,9.63210075]
[1767854232578,0.79055676,135.32,135.29,2.23951823]
[1767854232786,0.1,135.32,135.29,2.23951823]
[1767854232995,0.1,135.32,135.3,2.23951823]
[1767854233399,0.1,135.34,135.31,2.23951823]
[1767854233582,0.1,135.34,135.32,2.23951823]
[1767854233982,0.1,135.34,135.31,2.23951823]
[1767854234585,0.1,135.34,135.32,2.23951823]
[1767854234791,0.1,135.34,135.31,2.23951823]
[1767854234992,8.07995658,135.33,135.29,2.23951823]
[1767854235180,8.07995658,135.33,135.29,13.5]
[1767854235797,0.69055676,135.33,135.29,15.73951823]
[1767854237399,0.69055676,135.33,135.3,2.23951823]
[1767854237704,0.1,135.34,135.31,2.23951823]
[1767854237904,0.1,135.34,135.33,2.23951823]
[1767854238106,0.1,135.35,135.33,2.23951823]
[1767854238312,1e-08,135.36,135.34,2.23951823]
[1767854238483,0.1,135.38,135.35,2.23951823]
[1767854238804,0.1,135.38,135.37,2.23951823]
[1767854239004,1e-08,135.4,135.37,15.73951823]
[1767854239213,0.79055676,135.43,135.39,2.23951823]
[1767854239380,0.69055676,135.42,135.37,7.38697375]
[1767854239587,0.69055676,135.42,135.37,2.23951823]
[1767854239903,0.69055676,135.41,135.36,15.73951823]
[1767854240210,0.69055676,135.41,135.37,2.23951823]
[1767854240393,0.69055676,135.41,135.38,2.23951823]
[1767854240593,0.69055676,135.41,135.38,5.49144826]
[1767854241091,0.69055676,135.41,135.37,5.49144826]
[1767854241278,8.0756377,135.41,135.37,5.49144826]
[1767854241685,0.69055676,135.41,135.37,12.87843991]
[1767854242796,0.69055676,135.41,135.37,7.38699165]
[1767854242997,0.69055676,135.41,135.37,12.87843991]
[1767854243408,0.69055676,135.41,135.36,20.88749027]
[1767854243600,0.69055676,135.41,135.37,5.49144826]
[1767854243795,0.69055676,135.4,135.36,26.37893853]
[1767854244000,0.69055676,135.4,135.36,18.99144826]
[1767854244200,0.69055676,135.4,135.36,26.37915484]
[1767854244422,0.69055676,135.4,135.36,12.87915484]
[1767854244621,0.69055676,135.4,135.36,5.49144826]
[1767854245322,0.69055676,135.4,135.36,12.87897308]
[1767854245495,0.69055676,135.4,135.37,12.87860699]
[1767854245810,0.69055676,135.42,135.37,12.87860699]
[1767854247222,0.69055676,135.42,135.38,5.49144826]
[1767854247408,0.1,135.43,135.41,5.49144826]
[1767854247604,0.1,135.43,135.42,5.49144826]
[1767854249222,0.69055676,135.46,135.42,5.49144826]
[1767854249390,0.69055676,135.46,135.44,5.49144826]
[1767854249594,0.69055676,135.46,135.44,5.46475221]
[1767854249809,0.69055676,135.46,135.44,5.43167445]
[1767854250004,0.69055676,135.48,135.44,7.38328994]
[1767854250397,0.69055676,135.48,135.44,4.76644826]
[1767854250721,0.69055676,135.48,135.44,4.04144826]
[1767854251096,0.69055676,135.48,135.43,20.86366909]
[1767854251306,0.1330988,135.47,135.42,20.86421299]
[1767854251522,0.0330988,135.46,135.43,5.49144826]
[1767854251701,7.38181002,135.47,135.43,6.13010817]
[1767854251902,7.38181002,135.47,135.43,5.45834946]
[1767854252320,7.38181002,135.47,135.42,26.35566125]
[1767854252629,12.87325828,135.47,135.41,5.49144826]
[1767854252799,5.49144826,135.46,135.41,18.97144826]
[1767854253118,7.38181002,135.47,135.42,5.49144826]
[1767854253322,12.87325828,135.47,135.42,5.49144826]
[1767854253623,7.38061849,135.49,135.45,5.49144826]
[1767854254220,29.1277663,135.5,135.45,12.87397642]
[1767854254417,23.63631804,135.5,135.45,12.87397642]
[1767854254621,29.1277663,135.5,135.45,5.49144826]
[1767854254928,5.49144826,135.49,135.43,12.87500274]
[1767854255102,5.49144826,135.49,135.43,13.54215753]
[1767854255307,5.49144826,135.49,135.44,5.49144826]
[1767854255640,12.87253352,135.49,135.44,5.49144826]
[1767854256007,29.12764941,135.5,135.45,5.49144826]
[1767854256603,16.2560478,135.5,135.47,5.49144826]
[1767854256824,16.2560478,135.5,135.45,0.66715479]
[1767854257016,16.2560478,135.5,135.46,5.49144826]
[1767854257216,16.2560478,135.5,135.47,5.49144826]
[1767854257412,16.2560478,135.5,135.45,0.66715479]
[1767854257627,23.6361893,135.5,135.47,0.66715479]
[1767854260025,23.6361893,135.5,135.46,5.49144826]
[1767854260420,23.6361893,135.5,135.46,0.66715479]
[1767854260738,25.87026523,135.5,135.46,0.66715479]
[1767854261216,2.23407593,135.49,135.44,0.66715479]
[1767854261530,42.0863738,135.5,135.44,0.66715479]
[1767854261531,2.23407593,135.48,135.44,0.66715479]
[1767854261738,9.61578082,135.48,135.44,0.66715479]
[1767854262308,7.38170489,135.48,135.44,0.66715479]
[1767854262829,2.23407593,135.46,135.42,0.66715479]
[1767854263014,39.31461306,135.48,135.43,0.66715479]
[1767854263217,41.54868899,135.48,135.43,2.84123662]
[1767854263629,39.31461306,135.48,135.43,2.84123662]
[1767854263832,2.23407593,135.47,135.43,0.60716069]
[1767854264010,2.23407593,135.46,135.43,0.60716069]
[1767854264213,2.23407593,135.44,135.38,2.23407593]
[1767854264637,2.23407593,135.44,135.39,2.23407593]
[1767854265044,2.27368177,135.45,135.39,2.23407593]
[1767854265342,9.656725,135.45,135.4,2.90123072]
[1767854265629,0.34431724,135.47,135.42,2.90123072]
[1767854265833,0.34431724,135.47,135.42,0.66715479]
[1767854266030,2.57839317,135.47,135.42,0.66715479]
[1767854266841,7.44237621,135.46,135.42,0.66715479]
[1767854268226,0.0599941,135.46,135.42,8.05156696]
[1767854268436,7.7262459,135.47,135.42,10.28564289]
[1767854268830,7.38192866,135.47,135.43,0.66715479]
[1767854269037,9.61600459,135.47,135.43,0.66715479]
[1767854269229,7.38192866,135.47,135.43,0.66715479]
[1767854269742,23.15544668,135.48,135.43,2.90123072]
[1767854269944,7.44137075,135.48,135.43,10.28497799]
[1767854270344,9.67544668,135.48,135.43,10.28497799]
[1767854271142,2.29407003,135.46,135.41,2.90123072]
[1767854271443,2.23407593,135.46,135.42,0.66715479]
[1767854271642,0.28432314,135.47,135.42,0.66715479]
[1767854271824,2.23407593,135.46,135.42,0.66715479]
[1767854272146,7.38225306,135.46,135.42,0.66715479]
[1767854276830,0.0599941,135.49,135.45,0.66715479]
[1767854277030,2.29407003,135.49,135.45,0.66715479]
[1767854277831,23.63637471,135.5,135.46,0.66715479]
[1767854279059,25.87045064,135.5,135.46,0.66715479]
[1767854279443,23.63637471,135.5,135.46,0.66715479]
[1767854279851,25.87045064,135.5,135.46,0.66715479]
[1767854280260,16.2560478,135.5,135.46,2.90123072]
[1767854280463,16.2560478,135.5,135.47,0.66715479]
[1767854281035,23.63612185,135.5,135.47,0.66715479]
[1767854281440,16.2560478,135.5,135.47,0.66715479]
[1767854282435,14.8060478,135.5,135.49,2.23407593]
[1767854282643,8.09850323,135.53,135.49,2.23407593]
[1767854282965,8.09850323,135.53,135.47,7.38157356]
[1767854282966,0.71974985,135.53,135.47,7.38157356]
[1767854283166,0.71974985,135.53,135.5,2.23407593]
[1767854283766,7.47757784,135.55,135.51,2.23407593]
[1767854283940,0.71920661,135.54,135.5,2.23407593]
[1767854284140,8.09726651,135.54,135.5,2.23407593]
[1767854284341,0.71920661,135.53,135.5,2.23407593]
[1767854285069,0.71920661,135.52,135.48,2.23407593]
[1767854285253,0.71920661,135.5,135.46,2.23407593]
[1767854285669,0.71920661,135.5,135.45,20.86243345]
[1767854285854,2.95328254,135.48,135.43,2.23407593]
[1767854286056,0.71920661,135.47,135.43,9.61793226]
[1767854286666,0.71920661,135.47,135.44,2.23407593]
[1767854286870,16.43328254,135.51,135.46,2.23407593]
[1767854287041,0.71920661,135.5,135.46,2.23407593]
[1767854287240,0.71920661,135.49,135.45,2.23407593]
[1767854288668,0.71920661,135.49,135.45,3.49082787]
[1767854289177,4.21003448,135.49,135.44,3.49082787]
[1767854289375,0.71920661,135.47,135.42,7.38438715]
[1767854289576,0.71920661,135.47,135.43,3.49082787]
[1767854289876,0.71920661,135.47,135.44,10.87369757]
[1767854290051,0.71920661,135.49,135.45,3.49082787]
[1767854290376,4.21003448,135.49,135.44,3.49082787]
[1767854290679,0.71920661,135.48,135.44,3.49082787]
[1767854290873,0.71920661,135.48,135.44,10.87407992]
[1767854292352,0.71920661,135.5,135.47,3.49082787]
[1767854292758,0.71920661,135.5,135.46,3.49082787]
[1767854293178,0.71920661,135.5,135.48,3.49082787]
[1767854294082,0.71920661,135.5,135.49,3.49082787]
[1767854294278,0.71920661,135.5,135.49,7.38061849]
[1767854294475,0.71920661,135.5,135.49,16.28978473]
[1767854295170,0.71920661,135.5,135.49,8.90916624]
[1767854295483,0.71920661,135.5,135.48,7.3809882]
[1767854295653,0.71920661,135.5,135.48,16.29015444]
[1767854296182,0.71920661,135.5,135.49,8.90916624]
[1767854296776,8.0976527,135.53,135.48,7.3809882]
[1767854296974,8.0976527,135.53,135.49,8.90916624]
[1767854297376,7.3780975,135.54,135.49,16.28977183]
[1767854297573,8.09730411,135.54,135.49,16.28977183]
[1767854297777,0.71920661,135.52,135.48,7.38092396]
[1767854298080,0.71920661,135.52,135.48,16.2900902]
[1767854299407,0.71920661,135.51,135.47,7.38159958]
[1767854299688,9.62837285,135.53,135.48,7.38100324]
[1767854300073,9.62837285,135.53,135.48,16.29016948]
[1767854301366,17.00696606,135.53,135.48,16.29016948]
[1767854301560,0.71920661,135.53,135.48,16.29016948]
[1767854302558,0.71920661,135.53,135.48,7.38100324]
[1767854302764,0.71920661,135.53,135.48,16.29016948]
[1767854303181,8.09773983,135.53,135.48,16.29016948]
[1767854303386,0.71920661,135.53,135.48,16.29016948]
[1767854304475,17.00647827,135.54,135.49,8.90916624]
[1767854304680,17.00647827,135.54,135.48,7.38100324]
[1767854304902,17.00647827,135.54,135.49,8.90916624]
[1767854305303,8.09731203,135.54,135.49,8.90916624]
[1767854305595,17.00647827,135.54,135.49,16.28961864]
[1767854306097,0.71920661,135.53,135.49,16.28961864]
[1767854306482,0.71920661,135.53,135.48,7.38116327]
[1767854306693,0.71920661,135.53,135.5,8.90916624]
[1767854307193,0.81920661,135.55,135.51,8.90916624]
[1767854307406,0.71920661,135.54,135.51,8.90916624]
[1767854307898,0.71920661,135.54,135.5,8.90916624]
[1767854308281,0.71920661,135.54,135.48,25.83407144]
[1767854308476,8.09723659,135.54,135.5,8.90916624]
[1767854308669,8.09723659,135.54,135.49,7.3804454]
[1767854308870,0.71920661,135.52,135.48,8.90916624]
[1767854309072,0.71920661,135.52,135.41,8.90916624]
[1767854309073,0.71920661,135.51,135.46,13.48]
[1767854309270,0.71920661,135.51,135.47,8.90916624]
[1767854309995,17.00801006,135.51,135.46,16.29123363]
[1767854310173,0.71920661,135.5,135.46,16.29123363]
[1767854311503,0.71920661,135.48,135.44,8.90916624]
[1767854311703,8.90916624,135.48,135.43,20.86384117]
[1767854311920,8.90916624,135.48,135.43,7.38387627]
[1767854312113,16.29036714,135.48,135.43,16.29304251]
[1767854313595,0.67112326,135.47,135.43,16.29304251]
[1767854313795,0.67112326,135.47,135.43,7.38387627]
[1767854313997,0.67112326,135.47,135.43,16.29304251]
[1767854314305,0.67112326,135.47,135.44,8.90916624]
[1767854314490,0.64112327,135.47,135.43,7.38387627]
[1767854314891,0.64112327,135.47,135.44,3.49194678]
[1767854315411,0.64112327,135.47,135.45,3.49194678]
[1767854315715,0.64112327,135.47,135.44,3.49194678]
[1767854316499,7.38087221,135.49,135.45,3.49194678]
[1767854316703,7.38087221,135.49,135.46,3.49194678]
[1767854316900,13.48,135.51,135.46,3.49194678]
[1767854317097,18.4478925,135.52,135.48,3.49194678]
[1767854317414,13.48,135.54,135.49,3.49194678]
[1767854317415,31.92544432,135.54,135.49,3.49194678]
[1767854317713,4.88375653,135.53,135.49,3.49194678]
[1767854317906,12.26219672,135.53,135.47,7.47147758]
[1767854318090,29.31648746,135.53,135.49,3.49194678]
[1767854318301,7.37844019,135.53,135.5,3.49194678]
[1767854318518,0.67112326,135.52,135.5,3.49194678]
[1767854319204,0.67112326,135.52,135.47,7.3815126]
[1767854319414,0.67112326,135.52,135.49,3.49194678]
[1767854320329,7.47777,135.55,135.5,0.67976726]
[1767854320628,7.47777,135.55,135.52,3.49194678]
[1767854321319,0.1,135.55,135.52,3.49194678]
[1767854321831,7.47746567,135.55,135.52,3.49194678]
[1767854322428,0.67112326,135.54,135.52,3.49194678]
[1767854323036,0.67112326,135.54,135.53,3.49194678]
[1767854323627,0.1,135.55,135.52,3.49194678]
[1767854323833,0.77112326,135.55,135.52,3.49194678]
[1767854324029,0.1,135.55,135.53,3.49194678]
[1767854324233,0.77112326,135.55,135.5,21.5396973]
[1767854324447,0.67112326,135.52,135.47,7.38132737]
[1767854324730,0.56043879,135.52,135.49,2.76694678]
[1767854324904,7.37814679,135.54,135.49,0.67976726]
[1767854325101,25.82288635,135.54,135.49,0.67976726]
[1767854325320,25.82288635,135.54,135.5,3.49194678]
[1767854326137,7.37814679,135.54,135.5,4.17171404]
[1767854326316,7.47735153,135.55,135.51,4.17171404]
[1767854326711,10.96929831,135.55,135.51,0.67976726]
[1767854327438,7.47735153,135.55,135.51,4.17171404]
[1767854328015,7.57635153,135.55,135.51,0.67976726]
[1767854328211,7.57635153,135.55,135.51,4.17171404]
[1767854329738,7.57635153,135.55,135.51,0.67976726]
[1767854329914,7.57635153,135.55,135.51,4.17171404]
[1767854330114,29.51167713,135.55,135.51,0.67976726]
[1767854330918,3.49194678,135.54,135.51,0.67976726]